Workbook

Sheet Выручка от реализации
A2: Выручка от реализации продукции
A4: Код статьи доходов | B4: Наименование товаров | C4: Цена, руб. | D4: Кол-во, шт. | E4: Сумма, руб. | F4: Скидка, % | G4: Цена с учетом скидки, руб. | H4: Сумма, руб.
A5: Статья затрат: 1.01 | B5: SKU001 | C5: 700 | D5: 5000 | E5: =C5*D5 -> 3500000 | F5: 0.1 | G5: =C5-C5*F5 -> 630 | H5: =G5*D5 -> 3150000
A6: Статья затрат: 1.02 | B6: SKU002 | C6: 400 | D6: 6000 | E6: =C6*D6 -> 2400000 | F6: 0.15 | G6: =C6-C6*F6 -> 340 | H6: =G6*D6 -> 2040000
A7: Статья затрат: 1.03 | B7: SKU003 | C7: 800 | D7: 8000 | E7: 6400000 | F7: 0.05 | G7: 760 | H7: 6080000
A8: Статья затрат: 1.04 | B8: SKU004 | C8: 350 | D8: 12000 | E8: 4200000 | F8: 0 | G8: 350 | H8: 4200000
A9: Статья затрат: 1.05 | B9: SKU005 | E9: 0 | G9: 0 | H9: 0
A10: Статья затрат: 1.06 | B10: SKU006 | E10: 0 | G10: 0 | H10: 0
A11: Статья затрат: 1.07 | B11: SKU007 | E11: 0 | G11: 0 | H11: 0
A12: Статья затрат: 1.08 | B12: SKU008 | E12: 0 | G12: 0 | H12: 0
A13: Статья затрат: 1.09 | B13: SKU009 | E13: 0 | G13: 0 | H13: 0
A14: Статья затрат: 1.10 | B14: SKU010 | E14: 0 | G14: 0 | H14: 0
A15: Статья затрат: 1.11 | B15: SKU011 | E15: 0 | G15: 0 | H15: 0
A16: Статья затрат: 1.12 | B16: SKU012 | E16: 0 | G16: 0 | H16: 0
A17: Статья затрат: 1.13 | B17: SKU013 | E17: 0 | G17: 0 | H17: 0
A18: Статья затрат: 1.14 | B18: SKU014 | E18: 0 | G18: 0 | H18: 0
A19: Статья затрат: 1.15 | B19: SKU015 | E19: 0 | G19: 0 | H19: 0
A20: Статья затрат: 1.16 | B20: SKU016 | E20: 0 | G20: 0 | H20: 0
A21: Статья затрат: 1.17 | B21: SKU017 | E21: 0 | G21: 0 | H21: 0
A22: Статья затрат: 1.18 | B22: SKU018 | E22: 0 | G22: 0 | H22: 0
A23: Статья затрат: 1.19 | B23: SKU019 | E23: 0 | G23: 0 | H23: 0
A24: Статья затрат: 1.20 | B24: SKU020 | E24: 0 | G24: 0 | H24: 0
A25: Итого выручка от реализации продукции | C25: =E25/D25 -> 532.2580645 | D25: =SUM(D5:D24) -> 31000 | E25: =SUM(E5:E24) -> 16500000 | G25: =H25/D25 -> 499.0322581 | H25: =SUM(H5:H24) -> 15470000

Sheet Справочник
A1: Код статьи | B1: Группа затрат | C1: Статья затрат | D1: Подстатьи затрат
A2: 1.01 | B2: ATL-реклама | C2: Затраты на традиционную рекламу | D2: ТВ | E2: =LEN(A2) -> 4
A3: 1.02 | B3: ATL-реклама | C3: Затраты на традиционную рекламу | D3: радио
A4: 1.03 | B4: ATL-реклама | C4: Затраты на традиционную рекламу | D4: печатные СМИ
A5: 1.04 | B5: ATL-реклама | C5: Затраты на традиционную рекламу | D5: наружная реклама
A6: 1.05 | B6: ATL-реклама | C6: Затраты на традиционную рекламу | D6: реклама в кинотеатрах
A7: 1.06 | B7: ATL-реклама | C7: Затраты на традиционную рекламу | D7: Интернет
A8: 1.07 | B8: BTL-реклама | C8: Затраты на стимуляцию сбыта (конечный потребитель) | D8: промоакции
A9: 1.08 | B9: BTL-реклама | C9: Затраты на стимуляцию сбыта (конечный потребитель) | D9: бесплатные образцы товара
A10: 1.09 | B10: BTL-реклама | C10: Затраты на стимуляцию сбыта (конечный потребитель) | D10: лотереи
A11: 1.10 | B11: BTL-реклама | C11: Затраты на стимуляцию сбыта (сеть дистрибьюторов) | D11: рассылка рекламы по почте, email
A12: 1.11 | B12: BTL-реклама | C12: Затраты на стимуляцию сбыта (сеть дистрибьюторов) | D12: каталоги
A13: 1.12 | B13: BTL-реклама | C13: Затраты на стимуляцию сбыта (сеть дистрибьюторов) | D13: телемагазины
A14: 1.13 | B14: BTL-реклама | C14: Затраты на стимуляцию сбыта (рекламные материалы - POS) | D14: дизайн рекламных материалов для использования в местах продаж
A15: 1.14 | B15: BTL-реклама | C15: Затраты на стимуляцию сбыта (рекламные материалы - POS) | D15: производство рекламных материалов для использования в местах продаж
A16: 1.15 | B16: BTL-реклама | C16: Затраты на стимуляцию сбыта (event marketing) | D16: презентация новых видов продукции или торговой марки
A17: 1.16 | B17: BTL-реклама | C17: Затраты на стимуляцию сбыта (event marketing) | D17: проведение распродаж, конкурсов, лотерей, купонные скидки
A18: 1.17 | B18: BTL-реклама | C18: Затраты на стимуляцию сбыта (event marketing) | D18: участие в выставках и ярмарках, организация посещения предприятия
A19: 1.18 | B19: BTL-реклама | C19: PR | D19: связи с общественностью
A20: 1.19 | B20: Затраты на исследования | C20: Количественные исследования | D20: массовые опросы (интервью, анкетирование)
A21: 1.20 | B21: Затраты на исследования | C21: Количественные исследования | D21: аудит точек продаж
A22: 1.21 | B22: Затраты на исследования | C22: Количественные исследования | D22: тестирование
A23: 1.22 | B23: Затраты на исследования | C23: Количественные исследования | D23: контент-анализ
A24: 1.23 | B24: Затраты на исследования | C24: Качественные исследования | D24: экспертный опрос
A25: 1.24 | B25: Затраты на исследования | C25: Качественные исследования | D25: фокус-группа
A26: 1.25 | B26: Затраты на исследования | C26: Качественные исследования | D26: таинственный покупатель
A27: 1.26
A28: 1.27
A29: 1.28
A30: 1.29
A31: 1.30
